{"text_format":"1","workbook":"xlsx","n_sheets":3,"sheets":["Tabelle1","Excel Version","Aussteller-Antrag"],"not_rendered":{"charts":0,"images":12,"macros":1,"external_links":0,"defined_names":1,"comments":0,"pivot_tables":0},"unopened":[],"bounds":{"document_bytes":16777216,"sheet_cells":100000,"rows_first":2000,"rows_last":500,"rows_between":2000,"halvings":0,"cell_chars":16384,"cell_head_chars":4096},"cells_cut":0,"cells_raw":0,"read":"whole","date_system":"1900"}

{"sheet":"Tabelle1","index":0,"n_rows":184,"n_cols":11,"rows_kept":184,"cut":false,"hidden":true,"merged":[]}
[]
[]
["Aussteller-Antrag"]
[]
[]
[]
[]
[]
[]
[]
[]
[]
["1. Angaben zum Aussteller "]
[]
[]
["Name des Ausstellers"]
["Strasse"]
["Postleitzahl"]
["Ort"]
["Land"]
["Telefon"]
["E-Mail"]
["Webadresse"]
[]
["Eintrag im Ausstellerverzeichnis: "]
["Eintrag (maximal 30 Zeichen):"]
["Alphabetische Einsortierung im Ausstellerverzeichnis unter Buchstabe:"]
["Logo im Format .eps wurde/wird an info@geosummit.ch gemailt am: "]
[]
["Kontaktperson"]
["Herr/Frau"]
["Name"]
["Vorname",null,null,null,null,null,null,null,"Konditionen",null,"Verweis auf Dokumentation Aussteller"]
["Telefon",null,null,null,null,null,null,null,"alle exkl. MWST"]
["E-Mail"]
[]
["2. Antrag Stand/Ausstellungsfläche"]
["In einem ersten Schritt gilt es die Ausstellungsfläche und den Stand festzulegen:",null,null,null,null,null,null,null,"Ausstellerfläche"]
[0,"Wir beantragen gemäss Hallenplan den Stand mit der Nummer: ",null,null,null,null,null,null,"CHF 325/m2 Earlybird, CHF 375/m2",null,"(siehe Ziffer XY)"]
[]
[null,"und der Standfläche von ",null,null,null,null,null,"m2","Grundeinrichtung Stand"]
[null,null,null,null,null,null,null,null,175,null,"(siehe Ziffer XY)"]
[null,"Sofern die gewünschte Standfläche von derjenigen im Hallenplan abweicht wünschen wir: ",null,null,null,null,null,"Länge"]
[null,"gilt nur für 3- und 4 Frontenstände (siehe Ziffer XY)",null,null,null,null,null,"Breite"]
[null,null,null,null,null,null,null,"m2"]
[]
[0,"Wir beantragen einen Arbeitsplatz auf einem Gemeinschaftstand ",null,null,null,null,null,null,"Pauschale von CHF 1'600 bzw 1'200",null,"(siehe Ziffer XY)"]
[0,"Wir beantragen einen Arbeitsplatz auf einem Gemeinschaftstand "]
[]
["In einem zweiten Schritt gilt es den Standtyp festzulegen:"]
[0,"Wir beantragen einen Eigenbaustand",null,null,null,null,null,null,"Pauschale von CHF 1'500",null,"(siehe Ziffer XY)"]
[0,"Wir beantragen den Stand mit Grundeinrichtung",null,null,null,null,null,null,"CHF 175/m2",null,"(siehe Ziffer XY)"]
[]
["In einem dritten Schritt gilt es festzulegen, ob Sie einen oder mehrere Mietausteller mit auf dem Stand haben:"]
[0,"Unser Mitaussteller heisst: ",null,"Die Kontaktperson ist:",null,null,"E-Mail:"]
[0,"Unser Mitaussteller heisst: ",null,"Die Kontaktperson ist:",null,null,"E-Mail:"]
[0,"Unser Mitaussteller heisst: ",null,"Die Kontaktperson ist:",null,null,"E-Mail:"]
[0,"Unser Mitaussteller heisst: ",null,"Die Kontaktperson ist:",null,null,"E-Mail:"]
[0,"Unser Mitaussteller heisst: ",null,"Die Kontaktperson ist:",null,null,"E-Mail:"]
[0,"Unser Mitaussteller heisst: ",null,"Die Kontaktperson ist:",null,null,"E-Mail:"]
[0,"Unser Mitaussteller heisst: ",null,"Die Kontaktperson ist:",null,null,"E-Mail:"]
[0,"Unser Mitaussteller heisst: ",null,"Die Kontaktperson ist:",null,null,"E-Mail:"]
[]
[]
[]
["3. Antrag Dienstleistungen"]
["In einem vierten Schritt gilt es festzulegen, wie Sie den Stand ausgestalten möchten. "]
[]
[]
[]
["3.1 Standbeschriftung"]
["Beschriftung","Konditionen","CHF 8.00 (exkl. MWST) je Buchstaben "]
["Logo","Konditionen","Logo "]
[]
[]
[]
[]
[]
["3.2 Mietmobiliar"]
["Tische"]
["Nr. ","Artikel","Masse LxBxH","Preis in CHF / Stk. ","Anzahl","Total Preis in CHF"]
[2803,"Konferenztisch","80x80x72cm",104,null,{"$f":"E82*D82","v":0}]
[2804,"Konferenztisch","120x80x72cm",138,null,{"$f":"E83*D83","v":0}]
[2805,"Konferenztisch","135x80x72cm",150,null,0]
[2806,"Konferenztisch","190x80x72cm",184,null,0]
[2801,"Bistrotisch","Ø 60 / 72cm",110,null,0]
[2802,"Bistrotisch","Ø 80 / 72cm",127,null,0]
["2810/W","Bartisch weiss","120x70x110cm",255,null,0]
["2810/S","Bartisch schwarz","120x70x110cm",276,null,0]
[2807,"Stehtisch","Ø 70 / 110cm",127,null,0]
[2808,"Stehtisch m. Fussring","Ø 70 / 110cm",138,null,0]
["2811/S","Clubtisch schwarz","50x50x45cm",81,null,0]
["2811/W","Clubtisch weiss","50x50x45cm",81,null,0]
["Stühle"]
["Nr. ","Artikel","Masse LxBxH","Preis in CHF / Stk. ","Anzahl","Total Preis in CHF"]
["2821/W","Bistrostuhl weiss","H = 45cm",52,null,{"$f":"E96*D96","v":0}]
["2821/S","Bistrostuhl schwarz","H = 45cm",52,null,{"$f":"E97*D97","v":0}]
[2820,"Konzferenzstuhl","H = 45cm",41,null,0]
[2825,"Barhocker orange","H = 87cm",98,null,0]
[2827,"Barhocker ZETA","H = 85cm",52,null,0]
[2828,"Barhocker weiss","H = 87cm",98,null,0]
[2829,"Barhocker schwarz","H = 85cm",98,null,0]
["2830/S","Clubsessel schwarz","H = 40cm",98,null,0]
[]
["Vitrinen"]
["Nr. ","Artikel","Masse LxBxH","Preis in CHF / Stk. ","Anzahl","Total Preis in CHF"]
[2841,"Hochvitrine","53x53x190cm",403,null,{"$f":"E107*D107","v":0}]
[2842,"Hochvitrine","970x53x190cm",564,null,{"$f":"E108*D108","v":0}]
[2844,"Hochvitrine oval","100x60x250cm",489,null,0]
[2843,"Hochvitrine oval","100x60x190cm",455,null,0]
["2547/W","Sideboard m. Haube","100x50x120cm",207,null,0]
[2845,"Sockelvitrine","50x50x130cm",207,null,0]
[2840,"Korpsuvitrine","95x45x100cm",242,null,0]
["Theken"]
["Nr. ","Artikel","Masse LxBxH","Preis in CHF / Stk. ","Anzahl","Total Preis in CHF"]
[2862,"Theke","100x50x100cm",161,null,{"$f":"E116*D116","v":0}]
["Sideboards / PC-Podeste"]
["Nr. ","Artikel","Masse LxBxH","Preis in CHF / Stk. ","Anzahl","Total Preis in CHF"]
[2857,"Sideboard  ","90x35x85cm",150,null,{"$f":"E119*D119","v":0}]
[2851,"PC-Podest","50x55x103cm",253,null,0]
["Diverses"]
["Nr. ","Artikel","Masse LxBxH","Preis in CHF / Stk. ","Anzahl","Total Preis in CHF"]
[2906,"Regal","75x45x200cm",161,null,{"$f":"E123*D123","v":0}]
[2920,"Prospektständer","40x25x130cm",138,null,0]
[2908,"Garderobenständer","50x50x200cm",75,null,0]
[2911,"Wandgarderobe","60x10cm",52,null,0]
[2914,"Kleiderbügel","Set à 10 Stk.",69,null,0]
[2902,"Abfallsackhalter","40x30x100cm",29,null,0]
[2901,"Papierkorb","Ø 30cm",29,null,0]
[2919,"Absperrständer","100cm",87,null,0]
["Küchenmöbel / Küchengeräte"]
["Nr. ","Artikel","Masse LxBxH","Preis in CHF / Stk. ","Anzahl","Total Preis in CHF"]
[2875,"Kitcase m. Deckel","150x80x200cm",782,null,{"$f":"E133*D133","v":0}]
[2876,"Kitcase m. Deckel","90x80x200cm",782,null,0]
[2881,"Spültrog mit Unterbau","45x45x110cm",220,null,0]
[2872,"Kühlschrank 140l","60x60x90cm",161,null,0]
[2883,"Arbeitstisch","100x70x90cm",220,null,0]
[2884,"Arbeitstisch","140x70x90cm",253,null,0]
[2887,"Arbeitstisch ","190x70x90cm",310,null,0]
[]
["3.3 Technische Anschlüsse"]
["Elektrische "]
[]
[]
[]
[]
["Internet"]
[]
[]
[]
[]
[]
[]
[]
[]
["3.4 Weitere Dienstleistungen rund um den Stand"]
["3.4.1 Auf- und Abbau"]
[]
[]
[]
["3.4.2 Reinigung"]
[]
[]
["3.4.3 Parkkarte"]
["1 Tages-Parkkarte","3 Tage","gratis"]
["weitere Parkkarten:",null,"Anzahl"]
["Verpflegung",null,"CHF 30/Tag"]
[]
[]
["3.4.5Versicherung"]
[]
["Formular gemailt am:"]
[]
[]
[]
["3.4.6 Früchtekörbe "]
[]
[]
[]
[]
[]
[]
[]
["Grobskizze des Standes"]

{"sheet":"Excel Version","index":1,"n_rows":26,"n_cols":9,"rows_kept":26,"cut":false,"hidden":true,"merged":[[22,8,22,10],[24,1,24,2],[25,1,25,2],[25,5,25,6],[30,0,30,2],[30,4,30,6],[31,0,31,2],[31,4,31,6],[21,1,21,2],[21,5,21,6],[22,1,22,2],[22,5,22,6],[23,1,23,2],[23,5,23,6],[11,0,11,6],[19,1,19,2],[19,5,19,6],[20,1,20,2],[20,5,20,6],[12,0,12,13]]}
[]
[]
[]
[]
[]
[]
[]
[]
["Aussteller-Antrag"]
[]
["Sehr geehrte Aussteller"]
[]
["Wir freuen uns, dass Sie am GEOSummit 2018 \"Nationale Messe und Kongress der GEO-Welt\" mit einem Stand präsent sein wollen. \nSie sind eingeladen, vor dem Ausfüllen des Antrages die Dokumentation für Aussteller (www….) zu studieren. \nDie Antragsarbeiten fallen für Sie dann einfacher aus. "]
[]
["Für Fragen nehmen wir uns gerne Zeit."]
[]
["Ihr GEOSummit 2018 Team"]
[]
[]
["Aussteller:",null,null,null,"Kontaktperson:",null,null,null,"Eintrag im Ausstellerverzeichnis (max. 30 Zeichen): "]
["Strasse:",null,null,null,"Anrede:"]
["Postleitzahl:",null,null,null,"Name:",null,null,null,"Alphabetische Einsortierung im Ausstellerverzeichnis unter Buchstabe:"]
["Ort:",null,null,null,"Vorname:"]
["Land:",null,null,null,"Telefon:"]
["Telefon:",null,null,null,"E-Mail:",null,null,null,"Logo im Format .eps wurde/wird an info@geosummit.ch gemailt am: "]
["Website:"]

{"sheet":"Aussteller-Antrag","index":2,"n_rows":308,"n_cols":9,"rows_kept":308,"cut":false,"hidden":false,"merged":[[303,0,303,1],[303,4,303,5],[304,0,305,1],[304,4,305,5],[173,2,173,3],[175,2,175,3],[169,2,169,3],[174,2,174,3],[168,0,168,6],[234,0,234,1],[222,0,222,1],[198,0,198,1],[202,0,202,1],[203,0,203,1],[204,0,204,1],[205,0,205,1],[206,0,206,1],[207,0,207,1],[208,0,208,1],[209,0,209,1],[210,0,210,1],[192,0,192,4],[193,2,193,3],[194,2,194,3],[163,2,163,3],[164,2,164,3],[165,2,165,3],[170,2,170,3],[171,2,171,3],[172,2,172,3],[55,8,57,8],[246,0,248,6],[201,2,201,3],[202,2,202,3],[203,2,203,3],[200,0,200,4],[138,2,138,3],[139,2,139,3],[144,2,144,3],[145,2,145,3],[146,2,146,3],[147,2,147,3],[148,2,148,3],[149,2,149,3],[135,2,135,3],[136,2,136,3],[141,2,141,3],[195,2,195,3],[199,2,199,3],[179,2,179,3],[180,2,180,3],[181,2,181,3],[182,2,182,3],[183,2,183,3],[143,2,143,3],[129,2,129,3],[131,2,131,3],[132,2,132,3],[134,2,134,3],[166,2,166,3],[167,2,167,3],[176,0,176,4],[177,2,177,3],[178,2,178,3],[157,2,157,3],[158,2,158,3],[159,2,159,3],[160,2,160,3],[161,2,161,3],[162,2,162,3],[156,0,156,4],[123,2,123,3],[124,2,124,3],[125,2,125,3],[126,2,126,3],[127,2,127,3],[128,2,128,3],[133,0,133,2],[142,2,142,3],[117,2,117,3],[118,2,118,3],[119,2,119,3],[120,2,120,3],[122,2,122,3],[107,2,107,3],[108,2,108,3],[109,2,109,3],[110,2,110,3],[111,2,111,3],[112,2,112,3],[116,2,116,3],[97,2,97,3],[98,2,98,3],[99,2,99,3],[100,2,100,3],[101,2,101,3],[102,2,102,3],[113,2,113,3],[114,2,114,3],[115,2,115,3],[103,2,103,3],[104,2,104,3],[105,2,105,3],[106,2,106,3],[82,0,82,1],[83,0,83,1],[76,0,76,1],[77,0,77,1],[78,0,78,1],[79,0,79,1],[80,0,80,1],[81,0,81,1],[76,2,76,3],[77,2,77,3],[78,2,78,3],[79,2,79,3],[80,2,80,3],[81,2,81,3],[82,2,82,3],[83,2,83,3],[40,0,40,2],[41,0,41,2],[40,4,40,6],[41,4,41,6],[75,0,75,1],[75,2,75,3],[75,4,75,6],[33,1,33,2],[34,1,34,2],[35,1,35,2],[56,0,56,2],[38,0,38,6],[32,5,32,6],[33,5,33,6],[35,5,35,6],[29,1,29,2],[30,1,30,2],[31,1,31,2],[32,1,32,2],[13,0,17,7],[19,0,20,7],[92,2,92,6],[93,0,93,1],[92,0,92,1],[93,2,93,6],[45,8,46,8],[27,5,27,6],[190,0,190,1],[212,0,212,1],[210,2,210,3],[209,2,209,3],[208,2,208,3],[207,2,207,3],[206,2,206,3],[205,2,205,3],[204,2,204,3],[53,3,53,4],[83,4,83,6],[82,4,82,6],[81,4,81,6],[80,4,80,6],[79,4,79,6],[29,5,29,6],[30,5,30,6],[31,5,31,6],[10,8,11,8],[242,0,242,1],[34,5,34,6],[78,4,78,6],[77,4,77,6],[76,4,76,6],[240,0,240,1],[232,2,232,6],[233,2,233,6],[234,2,234,6],[235,2,235,6],[236,2,236,6],[237,2,237,6],[238,2,238,6],[239,2,239,6],[240,2,240,6],[235,0,235,1],[236,0,236,1],[237,0,237,1],[238,0,238,1],[239,0,239,1],[231,0,231,4],[232,0,232,1],[233,0,233,1]]}
[]
[]
[]
[]
[]
[]
[]
[]
[]
[]
["Aussteller-Antrag",null,null,null,null,null,null,null,"Verweise auf Ausstellerdokumentation"]
[]
["Sehr geehrte Aussteller"]
["Wir freuen uns, dass Sie am GEOSummit 2018 \"Nationale Messe und Kongress für die GEO-Welt\" mit einem Stand präsent sein wollen. \nNeu buchen Sie ausschliesslich dasjenige (Stand-)Material, welches Sie benötigen. Das gute Preis-Leistungs-Verhältnis der Vorjahre bleibt gemäss Modellrechnungen bestehen.",null,null,null,null,null,null,null,"WICHTIG! Preise exkl. MWST"]
[]
[]
[]
[]
[]
["Sie sind eingeladen, vor dem Ausfüllen des Antrages die Dokumentation für Aussteller  zu studieren. \nDie Antragsarbeiten fallen für Sie anschliessend einfacher aus. "]
[null,null,null,null,null,null,null,null,"Zur Dokumentation für Aussteller"]
[]
["Für Fragen nehmen wir uns gerne Zeit."]
[]
["Ihr GEOSummit 2018 Team"]
[]
[]
["1. Angaben zum Aussteller"]
[]
["Aussteller:",null,null,null,"Kontaktperson:"]
["Strasse:",null,null,null,"Anrede:"]
["Postleitzahl:",null,null,null,"Name:"]
["Ort:",null,null,null,"Vorname:"]
["Land:",null,null,null,"Telefon:"]
["Telefon:",null,null,null,"E-Mail:"]
["Website:"]
[]
["Eintrag im Ausstellerverzeichnis (max. 30 Zeichen): "]
[]
[]
["Alphabetische Einsortierung im Ausstellerverzeichnis unter Buchstabe:",null,null,null,"Logo im Format .eps wurde/wird an gemailt am: ",null,null,null,"info@geosummit.ch "]
[]
[]
[]
[]
["2. Antrag Ausstellerfläche / Stand"]
[]
["In einem ersten Schritt gilt es, die Ausstellerfläche und den Stand festzulegen:"]
[true,null,null,null,null,null,null,null,"Ausstellerfläche Ziffer 2"]
["      und der Standfläche von m2:",null,null,null,null,null,null,null,"CHF 375/m2"]
[]
["     Sofern die gewünschte Standfläche von derjenigen im Hallenplan abweicht, wünschen wir: ",null,null,null,null,null,null,null,"Ziffer 3.2.3/3.2.4"]
["     (nur möglich für 3- und 4- Fronten-Stände)"]
["     Länge:",null,"Breite:"]
[false,null,null,null,null,null,null,null,"Gemeinschaftsstand \nZiffer 3.2.5"]
[null,null,null,null,null,null,null,null,"pauschal CHF 1'200 (StartUp <5Jahre, Einzelunternehmer, Bildungsinstitutionen) ansonsten pauschal CHF 1'600 "]
[null,false]
[true]
[]
[]
["Zwischentotal Ausstellerfläche (gemäss Standplan): ",null,null,null,null,null,{"$f":"IF(A49=TRUE,F50*375,IF(B57=TRUE,1200,1600))","v":0}]
[]
[]
["In einem zweiten Schritt gilt es, den Standtyp festzulegen:",null,null,null,null,null,null,null,"Eigenbaustand"]
[false,null,null,null,null,null,null,null,"Pauschale von CHF 1'500"]
[null,null,null,null,null,null,null,null,"Grundeinrichtung"]
[true,null,null,null,null,null,null,null,"CHF 175/m2"]
[]
[]
[]
["Zwischentotal Standtyp",null,null,null,null,null,{"$f":"IF(A65=TRUE,1500,175*F50)","v":0}]
[]
[]
["In einem dritten Schritt gilt es festzulegen, ob Sie einen oder mehrere Mietausteller mit auf dem Stand haben:"]
[]
["Mitaussteller",null,"Kontaktperson",null,"Email"]
[]
[]
[]
[]
[]
[]
[]
[]
[]
[]
["3. Antrag Dienstleistungen"]
[]
["In einem vierten Schritt gilt es festzulegen, wie Sie den Stand ausgestalten möchten:"]
[]
["3.1 Standbeschriftung"]
[null,null,null,null,null,null,null,null,"Ziffer 2.3"]
["Gewünschte Beschriftung:",null,null,null,null,null,null,null,"CHF 8 pro Buchstabe"]
["Logo für Standbeschriftung, gesendet am:",null,null,null,null,null,null,null,"CHF 230.00/m2, min. CHF 80.00\ninfo@geosummit.ch "]
[]
["3.2 Mietmobiliar"]
[null,null,null,null,null,null,null,null,"Ziffer 7.3"]
["Tische"]
["Nr. ","Artikel","Masse LxBxH",null,"Preis / Stk. ","Anzahl","Total Preis in CHF",null,"Ziffer 7.3.1"]
[2803,"Konferenztisch","80x80x72cm",null,104,null,{"$f":"F100*E100","v":0}]
[2804,"Konferenztisch","120x80x72cm",null,138,null,0]
[2805,"Konferenztisch","135x80x72cm",null,150,null,0]
[2806,"Konferenztisch","190x80x72cm",null,184,null,0]
[2801,"Bistrotisch","Ø 60 / 72cm",null,110,null,0]
[2802,"Bistrotisch","Ø 80 / 72cm",null,127,null,0]
["2810/W","Bartisch weiss","120x70x110cm",null,255,null,0]
["2810/S","Bartisch schwarz","120x70x110cm",null,276,null,0]
[2807,"Stehtisch","Ø 70 / 110cm",null,127,null,0]
[2808,"Stehtisch m. Fussring","Ø 70 / 110cm",null,138,null,0]
["2811/S","Clubtisch schwarz","50x50x45cm",null,81,null,0]
["2811/W","Clubtisch weiss","50x50x45cm",null,81,null,0]
["Stühle"]
["Nr. ","Artikel","Masse LxBxH",null,"Preis / Stk. ","Anzahl","Total Preis in CHF",null,"Ziffer 7.3.2"]
["2821/W","Bistrostuhl weiss","H = 45cm",null,52,null,{"$f":"F114*E114","v":0}]
["2821/S","Bistrostuhl schwarz","H = 45cm",null,52,null,0]
[2820,"Konzferenzstuhl","H = 45cm",null,41,null,0]
[2825,"Barhocker orange","H = 87cm",null,98,null,0]
[2827,"Barhocker ZETA","H = 85cm",null,52,null,0]
[2828,"Barhocker weiss","H = 87cm",null,98,null,0]
[2829,"Barhocker schwarz","H = 85cm",null,98,null,0]
["2830/S","Clubsessel schwarz","H = 40cm",null,98,null,0]
["Vitrinen"]
["Nr. ","Artikel","Masse LxBxH",null,"Preis / Stk. ","Anzahl","Total Preis in CHF",null,"Ziffer 7.3.3"]
[2841,"Hochvitrine","53x53x190cm",null,403,null,{"$f":"F124*E124","v":0}]
[2842,"Hochvitrine","970x53x190cm",null,564,null,0]
[2844,"Hochvitrine oval","100x60x250cm",null,489,null,0]
[2843,"Hochvitrine oval","100x60x190cm",null,455,null,0]
["2547/W","Sideboard m. Haube","100x50x120cm",null,207,null,0]
[2845,"Sockelvitrine","50x50x130cm",null,207,null,0]
[2840,"Korpsuvitrine","95x45x100cm",null,242,null,0]
["Theken"]
["Nr. ","Artikel","Masse LxBxH",null,"Preis / Stk. ","Anzahl","Total Preis in CHF",null,"Ziffer 7.3.4"]
[2862,"Theke","100x50x100cm",null,161,null,{"$f":"F133*E133","v":0}]
["Sideboards / PC-Podeste"]
["Nr. ","Artikel","Masse LxBxH",null,"Preis / Stk. ","Anzahl","Total Preis in CHF",null,"Ziffer 7.3.5"]
[2857,"Sideboard  ","90x35x85cm",null,150,null,{"$f":"F136*E136","v":0}]
[2851,"PC-Podest","50x55x103cm",null,253,null,{"$f":"F137*E137","v":0}]
["Beleuchtung"]
[3001,"Galgenspot","Wandbefestigung",null,45,null,{"$f":"E139*F139","v":0},null,"Ziffer 7.3.6"]
[3002,"zusätzliche Beleuchtung",null,null,65,null,{"$f":"E140*F140","v":0}]
["Diverses"]
["Nr. ","Artikel","Masse LxBxH",null,"Preis / Stk. ","Anzahl","Total Preis in CHF",null,"Ziffer 7.3.7"]
[2906,"Regal","75x45x200cm",null,161,null,{"$f":"F143*E143","v":0}]
[2920,"Prospekt-ständer","40x25x130cm",null,138,null,0]
[2908,"Garderoben-ständer","50x50x200cm",null,75,null,0]
[2911,"Wandgarderobe","60x10cm",null,52,null,0]
[2914,"Kleiderbügel","Set à 10 Stk.",null,69,null,0]
[2902,"Abfallsackhalter","40x30x100cm",null,29,null,0]
[2901,"Papierkorb","Ø 30cm",null,29,null,0]
[2919,"Absperrständer","100cm",null,87,null,0]
[]
["Zwischentotal Mietmobiliar",null,null,null,null,null,{"$f":"SUM(G143:G150,G139:G140,G136:G137,G133,G124:G130,G114:G121,G100:G111)","v":0}]
[]
[]
["3.3 Technische Anschlüsse"]
[null,null,null,null,null,null,null,null,"Ziffer 7.4"]
["Elektrische Installationen"]
["Nr. ","Artikel","Beschrieb",null,"Preis / Stk. ","Anzahl","Total Preis in CHF",null,"Ziffer 7.4.1"]
[206102,"Steckdose ","230V, bis 2.3 kW",null,212,null,{"$f":"F159*E159","v":0}]
[206204,"Zweifachsteck-dose","230V, bis 4.6kW",null,288,null,0]
[206306,"Dreifachsteck-dose","230V bis 6.9kW",null,321,null,0]
[207106,"Steckdose T15","400V bis 6.9 kW",null,321,null,0]
[207901,"Zusatzsteckdose T15","400V bis 6.9 kW",null,77,null,0]
[207110,"Steckdose","400V bis 11 kW",null,361,null,0]
[207120,"Steckdose","400V bis 17 kW",null,413,null,0]
[207140,"Steckdose","400V bis 40 kW",null,579,null,0]
[204061,"Elektroverteil-kasten EURO CEE 32A","ohne Zuleitung, erfordert Art. 400055 und 207120",null,196,null,0]
[204062,"Elektroverteil-kasten EURO CEE 63A","ohne Zuleitung, erfordert Art. 400059 und 207140",null,237,null,0]
["Stromverbrauch"]
["Nr. ","Artikel","Beschrieb",null,"Preis / Tag","Anzahl","Total Preis in CHF",null,"Ziffer 7.4.1"]
[400050,"Strom","bis 2.3 kW, für 206102",null,5.5,null,{"$f":"E171*F171","v":0}]
[400051,"Strom","bis 4.6 kW, für 206204",null,11,null,{"$f":"E172*F172","v":0}]
[400052,"Strom","bis 6.9 kW, für 206306 und 207106",null,16.5,null,0]
[400053,"Strom","bis 11 kW, für 207110",null,26.4,null,0]
[400055,"Strom","bis 17 kW, für 207120 und 204061",null,40.799999999999997,null,0]
[400059,"Strom","bis 40 kW, für 207140 und 204062",null,96,null,0]
["Internetanschlüsse"]
["Nr. ","Artikel","Beschrieb",null,"Preis / Stk. ","Anzahl","Total Preis in CHF",null,"Ziffer 7.4.2"]
[302110,"Anschluss","1 PC",null,515,null,{"$f":"F179*E179","v":0}]
[302111,"Anschluss","2-5 PC",null,826,null,0]
[302112,"Anschluss","6-10 PC",null,1035,null,0]
[302113,"Anschluss","11-15 PC (braucht Switch)",null,1346,null,0]
[302114,"Switch RJ 45","5 Port, 10/100 Mbps",null,52,null,0]
[302115,"Switch RJ 45","8 Port, 10/100 Mbps",null,104,null,0]
[]
["Zwischentotal Technische Anschlüsse",null,null,null,null,null,{"$f":"SUM(G159:G168,G179:G184,G171:G176)","v":0}]
[]
[]
["3.4 Weitere Dienstleistungen"]
[null,null,null,null,null,null,null,null,"Ziffer 7.5"]
["Auf- und Abbau",null,null,null,null,null,null,null,"Ziffer 7.5.1"]
[]
["Fördergeräte"]
["Nr. ","Artikel","Beschrieb",null,"Preis / Stk. oder h","Anzahl","Total Preis in CHF"]
[551035,"Palett-Hubwagen",null,null,69,null,{"$f":"F195*E195","v":0}]
[551006,"Hubstapler",null,null,200,null,{"$f":"F196*E196","v":0}]
[]
[]
["Gebäck & Früchte",null,null,null,null,null,null,null,"Ziffer  7.5.3"]
[null,null,null,null,null,null,null,null,"Lieferung jeweils 08.00 od. 14.00h"]
["Verpflegung für den Stand",null,null,null,null,null,null,null,"bzw. 08.00h und 14.00h"]
["Artikel",null,"Beschrieb",null,"Preis","Anzahl ","Total Preis in CHF"]
["Früchtekorb",null,"2Kg",null,18,null,{"$f":"E203*F203","v":0}]
["Früchtekorb",null,"4Kg",null,34,null,0]
["Früchtekorb",null,"6Kg",null,49,null,0]
["Gipfeli assortiert",null,"10 Stück",null,15,null,0,null,"Ziffer 3.3.4.2"]
["Gipfeli assortiert",null,"20 Stück",null,30,null,0]
["Gipfeli assortiert",null,"30 Stück",null,45,null,0]
["Muffins assortiert",null,"10 Stück",null,30,null,0]
["Muffins assortiert",null,"20 Stück",null,60,null,0]
["Muffins assortiert",null,"30 Stück",null,90,null,0]
[]
["Reinigung",null,null,null,"Tages-Parkkarte"]
[null,null,null,null,null,null,null,null,"Ziffer 3.3.4.2 (Reinigung)"]
[null,null,null,null,"Preis","Anzahl","Total Preis in CHF"]
[false,null,null,null,30,null,{"$f":"E216*F216","v":0}]
["Standfläche in m2:",null,{"$f":"F50","v":0},null,null,null,null,null,"Ziffer 3.3.4.3 (Tages-Parkkarte)               (1 pro Stand inkl.)"]
["Pauschale m2 ",null,10]
["Reinigungskosten",null,{"$f":"IF(A216=FALSE,0,110+(C217-C218)*8.5)","v":0}]
[]
[]
[]
["Versicherung",null,null,null,null,null,null,null,"Ziffer 7.5.2"]
[]
["Ausgefülltes Versicherungsformular eingereicht am: ",null,null,null,null,null,null,null,"zum Versicherungsformular"]
[null,null,null,null,null,null,null,null,"info@geosummit.ch "]
[]
["Zwischentotal weitere Dienstleistungen",null,null,null,null,null,{"$f":"SUM(G216,C219,G203:G211,G195:G196)","v":0}]
[]
["3.5 Weitere, nicht aufgeführte Artikel"]
[]
["Weiteres"]
["Artikel",null,"Beschrieb"]
[]
[]
[]
[]
[]
[]
[]
[]
[]
["Bemerkungen"]
[]
[]
[]
["Text"]
[]
[]
[]
[]
[]
["Richtpreis für den gesamten Stand exkl. MWST (ohne Beschriftung):",null,null,null,null,null,{"$f":"SUM(G228,G186,G152,G71,G61)","v":0}]
[]
[]
["5. Grobskizze des Standes"]
[]
[]
[]
[]
[]
[]
[]
[]
[]
[]
[]
[]
[]
[]
[]
[]
[]
[]
[]
[]
[]
[]
[]
[]
[]
[]
[]
[]
[]
[]
[]
[]
[]
[]
[]
[]
[]
[]
[]
[]
[]
[]
[]
[]
[]
[]
[]
["Ort & Datum",null,null,null,"Unterschrift"]
[]
[]
[]
["Formular einzureichen an: ",null,"info@geosummit.ch"]